[Event "ESP-chT 2nd Division 2019"]
[Site "Linares"]
[Date "2019.08.22"]
[Round "5.34"]
[White "Roldan Marques, Marta"]
[Black "Ordonez Torres, Maria Del Carmen"]
[Result "1/2-1/2"]
[ECO "C55"]
[WhiteElo "1886"]
[BlackElo "2027"]
[Annotator "NA"]
[PlyCount "252"]
[EventDate "2019.08.19"]
[EventType "team-tourn"]
[EventCountry "ESP"]
[SourceTitle "playchess.com"]
[Source "ChessBase"]
[SourceQuality "1"]
[TimeControl "5400+30"]

1. e4 {[%emt 0:00:00]} e5 {[%emt 0:00:00]} 2. Nf3 {[%emt 0:00:00]} Nc6 {[%emt 0:00:00]} 3. Bc4 {[%emt 0:00:00]} Nf6 {[%emt 0:00:09]} 4. d3 {[%emt 0:00:00]} Be7 {[%emt 0:00:16]} 5. Nc3 {[%emt 0:02:30]} d6 {[%emt 0:00:15]} 6. h3 {[%emt 0:01:00]} Na5 {[%emt 0:00:17]} 7. Bb5+ {[%emt 0:01:53]} c6 {[%emt 0:00:50]} 8. Ba4 {[%emt 0:00:05]} b5 {[%emt 0:01:07]} 9. Bb3 {[%emt 0:00:04]} O-O {[%emt 0:01:06]} 10. Be3 {[%emt 0:04:53]} a6 {[%emt 0:01:36]} 11. Ne2 {[%emt 0:04:38]} h6 {[%emt 0:02:46]} 12. Ng3 {[%emt 0:05:00]} Re8 {[%emt 0:01:40]} 13. Qd2 {[%emt 0:04:06]} Bf8 {[%emt 0:01:21]} 14. O-O {[%emt 0:07:50]} Nxb3 {[%emt 0:01:37]} 15. axb3 {[%emt 0:00:04]} d5 {[%emt 0:01:00]} 16. exd5 {[%emt 0:07:03]} Nxd5 {[%emt 0:02:26]} 17. d4 {[%emt 0:08:36]} Nxe3 {[%emt 0:03:21]} 18. Qxe3 {[%emt 0:06:14]} exd4 {[%emt 0:01:51]} 19. Qxd4 {[%emt 0:00:40]} c5 {[%emt 0:04:33]} 20. Qxd8 {[%emt 0:11:06]} Rxd8 {[%emt 0:00:07]} 21. Rad1 {[%emt 0:00:01]} Be6 {[%emt 0:03:54]} 22. Ne5 {[%emt 0:05:20]} Rac8 {[%emt 0:02:39]} 23. Ng4 {[%emt 0:07:21]} c4 {[%emt 0:04:41]} 24. bxc4 {[%emt 0:03:10]} Bxc4 {[%emt 0:03:07]} 25. Rfe1 {[%emt 0:00:04]} Be6 {[%emt 0:00:51]} 26. c3 {[%emt 0:01:23]} a5 {[%emt 0:03:06]} 27. Ne2 {[%emt 0:04:31]} Bc4 {[%emt 0:09:24]} 28. Rxd8 {[%emt 0:01:51]} Rxd8 {[%emt 0:00:02]} 29. Nd4 {[%emt 0:00:01]} Bc5 {[%emt 0:08:55]} 30. Nc6 {[%emt 0:02:59]} Rd2 {[%emt 0:05:57]} 31. Nxa5 {[%emt 0:00:10]} Be6 {[%emt 0:05:20]} 32. Ne3 {[%emt 0:02:07]} Rxb2 {[%emt 0:02:52]} 33. Nc6 {[%emt 0:02:21]} Rb3 34. Nd4 Bxd4 {[%emt 0:08:41]} 35. cxd4 {[%emt 0:00:21]} Kf8 {[%emt 0:06:13]} 36. Kf1 {[%emt 0:02:04]} b4 {[%emt 0:03:56]} 37. f3 {[%emt 0:03:34]} Rd3 {[%emt 0:00:54]} 38. d5 {[%emt 0:01:57]} Bxd5 {[%emt 0:00:08]} 39. Nxd5 {[%emt 0:00:04]} Rxd5 {[%emt 0:00:30]} 40. Rb1 {[%emt 0:00:15]} Rd4 {[%emt 0:01:51]} 41. Ke2 {[%emt 0:00:25]} Ke7 {[%emt 0:00:29]} 42. Ke3 {[%emt 0:00:07]} Rc4 {[%emt 0:00:18]} 43. Kd3 {[%emt 0:01:40]} Rh4 44. g4 Rxh3 {[%emt 0:02:26]} 45. Ke3 {[%emt 0:00:32]} Kf6 {[%emt 0:01:15]} 46. Rxb4 {[%emt 0:00:05]} Kg6 {[%emt 0:00:56]} 47. Rb6+ {[%emt 0:00:53]} f6 {[%emt 0:00:13]} 48. Kf4 {[%emt 0:00:36]} Rh1 {[%emt 0:00:15]} 49. Rb7 {[%emt 0:00:38]} Ra1 {[%emt 0:00:33]} 50. Rc7 {[%emt 0:00:55]} Ra5 {[%emt 0:00:41]} 51. Rc6 {[%emt 0:00:41]} h5 {[%emt 0:00:40]} 52. gxh5+ {[%emt 0:00:05]} Kxh5 {[%emt 0:01:23]} 53. Rc7 {[%emt 0:00:43]} Kg6 {[%emt 0:00:25]} 54. Rb7 {[%emt 0:00:20]} Ra4+ {[%emt 0:00:13]} 55. Kg3 {[%emt 0:00:06]} Kh6 {[%emt 0:00:11]} 56. Rf7 {[%emt 0:00:27]} Rb4 {[%emt 0:00:30]} 57. Kh3 {[%emt 0:00:34]} Kg6 {[%emt 0:00:41]} 58. Ra7 {[%emt 0:00:07]} Rb1 {[%emt 0:01:36]} 59. Kg3 {[%emt 0:00:29]} Kh6 {[%emt 0:00:18]} 60. Rf7 {[%emt 0:00:10]} Rb4 {[%emt 0:00:13]} 61. Kh3 {[%emt 0:00:13]} Rb6 {[%emt 0:00:45]} 62. Kg4 {[%emt 0:01:06]} g6 {[%emt 0:00:49]} 63. Ra7 {[%emt 0:00:25]} Rb4+ {[%emt 0:01:17]} 64. Kg3 {[%emt 0:00:20]} Kg5 {[%emt 0:00:19]} 65. Ra5+ {[%emt 0:00:13]} f5 {[%emt 0:00:11]} 66. Rc5 {[%emt 0:00:22]} Kh5 {[%emt 0:02:11]} 67. Ra5 {[%emt 0:00:19]} Kh6 {[%emt 0:01:02]} 68. Rc5 {[%emt 0:00:12]} Rd4 {[%emt 0:00:28]} 69. Ra5 {[%emt 0:00:21]} Kg5 {[%emt 0:00:04]} 70. Rb5 {[%emt 0:00:27]} Rd6 {[%emt 0:00:18]} 71. Ra5 {[%emt 0:00:16]} Rd1 {[%emt 0:01:09]} 72. Rb5 {[%emt 0:00:18]} Rg1+ {[%emt 0:01:05]} 73. Kf2 {[%emt 0:00:16]} Rc1 {[%emt 0:00:25]} 74. Kg3 {[%emt 0:00:05]} Re1 {[%emt 0:00:14]} 75. Ra5 {[%emt 0:00:11]} Kf6 {[%emt 0:00:24]} 76. Rb5 {[%emt 0:00:58]} g5 {[%emt 0:00:25]} 77. Ra5 {[%emt 0:00:33]} f4+ {[%emt 0:00:28]} 78. Kf2 {[%emt 0:00:13]} Re6 {[%emt 0:01:06]} 79. Rb5 {[%emt 0:01:31]} Kg6 {[%emt 0:00:12]} 80. Rb1 {[%emt 0:00:32]} Rc6 {[%emt 0:00:12]} 81. Rb8 {[%emt 0:01:37]} Rc2+ {[%emt 0:00:17]} 82. Kf1 {[%emt 0:00:17]} Rc7 {[%emt 0:00:51]} 83. Rb2 {[%emt 0:00:26]} Rc3 {[%emt 0:00:36]} 84. Kg2 {[%emt 0:00:39]} Rc6 {[%emt 0:02:05]} 85. Rb8 {[%emt 0:02:07]} Rc2+ {[%emt 0:00:47]} 86. Kf1 {[%emt 0:00:21]} Rc6 {[%emt 0:00:26]} 87. Kg2 {[%emt 0:00:04]} Re6 {[%emt 0:00:10]} 88. Ra8 {[%emt 0:00:25]} Re7 {[%emt 0:00:42]} 89. Rb8 {[%emt 0:00:33]} Rg7 {[%emt 0:00:23]} 90. Rf8 {[%emt 0:00:57]} Rh7 {[%emt 0:00:14]} 91. Ra8 {[%emt 0:00:11]} Kh5 {[%emt 0:00:30]} 92. Rg8 {[%emt 0:00:15]} Rh6 {[%emt 0:00:29]} 93. Rg7 {[%emt 0:00:14]} Rh8 {[%emt 0:00:19]} 94. Kf2 {[%emt 0:00:29]} Rb8 {[%emt 0:00:38]} 95. Rh7+ {[%emt 0:00:06]} Kg6 96. Ra7 {[%emt 0:00:07]} Rb2+ {[%emt 0:00:10]} 97. Kf1 {[%emt 0:00:17]} Rc2 {[%emt 0:00:17]} 98. Ra8 {[%emt 0:00:20]} Rc6 {[%emt 0:00:30]} 99. Kg2 {[%emt 0:00:07]} Kh5 {[%emt 0:00:43]} 100. Rh8+ {[%emt 0:00:05]} Rh6 {[%emt 0:00:52]} 101. Rg8 {[%emt 0:00:03]} Rh7 {[%emt 0:00:27]} 102. Kf2 {[%emt 0:00:04]} Rh6 {[%emt 0:01:08]} 103. Rg7 {[%emt 0:00:06]} Rb6 {[%emt 0:00:48]} 104. Rh7+ {[%emt 0:00:10]} Kg6 {[%emt 0:00:15]} 105. Ra7 {[%emt 0:00:07]} Re6 {[%emt 0:00:16]} 106. Ra8 {[%emt 0:00:09]} Kf5 {[%emt 0:00:13]} 107. Ra5+ {[%emt 0:01:14]} Kg6 {[%emt 0:00:52]} 108. Ra8 {[%emt 0:00:04]} Re3 {[%emt 0:00:51]} 109. Rb8 {[%emt 0:00:47]} Re7 {[%emt 0:00:25]} 110. Ra8 {[%emt 0:00:10]} Rg7 {[%emt 0:00:13]} 111. Rb8 {[%emt 0:00:32]} Rh7 {[%emt 0:00:54]} 112. Kg2 {[%emt 0:00:05]} Rh4 {[%emt 0:00:41]} 113. Rg8+ {[%emt 0:00:54]} Kf6 {[%emt 0:00:03]} 114. Rf8+ {[%emt 0:00:17]} Kg7 {[%emt 0:00:19]} 115. Rf5 {[%emt 0:00:21]} Rh5 {[%emt 0:00:31]} 116. Ra5 {[%emt 0:00:22]} Rh6 {[%emt 0:00:47]} 117. Ra7+ {[%emt 0:00:41]} Kg6 {[%emt 0:00:21]} 118. Ra8 {[%emt 0:00:04]} Rh7 {[%emt 0:00:15]} 119. Rb8 {[%emt 0:00:18]} Rf7 {[%emt 0:00:23]} 120. Ra8 {[%emt 0:00:09]} Re7 {[%emt 0:00:22]} 121. Kf2 {[%emt 0:00:12]} Kf5 {[%emt 0:00:24]} 122. Rf8+ {[%emt 0:00:53]} Ke6 {[%emt 0:00:20]} 123. Rg8 {[%emt 0:00:09]} Kf6 {[%emt 0:00:09]} 124. Rf8+ {[%emt 0:00:17]} Rf7 {[%emt 0:00:18]} 125. Ra8 {[%emt 0:00:05]} Re7 {[%emt 0:00:20]} 126. Rf8+ {[%emt 0:00:17]} Ke5 1/2-1/2

[Event "ESP-chT 2nd Division 2019"]
[Site "Linares"]
[Date "2019.08.22"]
[Round "5.35"]
[White "Jimenez De La Torre, Jose A."]
[Black "Beaumont Arizaleta, Mikel"]
[Result "1-0"]
[ECO "C11"]
[WhiteElo "1978"]
[BlackElo "1754"]
[Annotator "NA"]
[PlyCount "43"]
[EventDate "2019.08.19"]
[EventType "team-tourn"]
[EventCountry "ESP"]
[SourceTitle "playchess.com"]
[Source "ChessBase"]
[SourceQuality "1"]
[TimeControl "5400+30"]

1. e4 {[%emt 0:00:00]} e6 {[%emt 0:00:00]} 2. Nf3 {[%emt 0:00:37]} d5 {[%emt 0:00:43]} 3. Nc3 {[%emt 0:00:18]} Nf6 {[%emt 0:00:18]} 4. e5 {[%emt 0:01:10]} Nfd7 {[%emt 0:00:05]} 5. d4 {[%emt 0:00:16]} c5 {[%emt 0:02:15]} 6. Bg5 {[%emt 0:00:48]} Qb6 {[%emt 0:02:40]} 7. dxc5 {[%emt 0:02:13]} Bxc5 {[%emt 0:00:48]} 8. Qd2 {[%emt 0:00:28]} Bxf2+ {[%emt 0:08:13]} 9. Qxf2 {[%emt 0:00:44]} Qxb2 {[%emt 0:00:07]} 10. Kd2 {[%emt 0:00:35]} Qxa1 {[%emt 0:01:43]} 11. Bb5 {[%emt 0:00:08]} Qxh1 {[%emt 0:04:29]} 12. Qc5 {[%emt 0:00:07]} Qxg2+ {[%emt 0:02:30]} 13. Kc1 {[%emt 0:01:34]} Qxg5+ {[%emt 0:04:13]} 14. Nxg5 {[%emt 0:00:11]} Nc6 {[%emt 0:07:49]} 15. Bxc6 {[%emt 0:02:35]} bxc6 {[%emt 0:00:02]} 16. Qxc6 {[%emt 0:00:09]} Rb8 {[%emt 0:04:23]} 17. Nxd5 {[%emt 0:03:45]} O-O {[%emt 0:09:28]} 18. Ne7+ {[%emt 0:06:04]} Kh8 {[%emt 0:00:04]} 19. Nxc8 {[%emt 0:24:14]} Nxe5 {[%emt 0:05:38]} 20. Qe4 {[%emt 0:00:48]} Ng6 {[%emt 0:09:19]} 21. Ne7 {[%emt 0:04:42]} Rb6 {[%emt 0:08:29]} 22. Qa8 {[%emt 0:04:22]} 1-0

[Event "ESP-chT 2nd Division 2019"]
[Site "Linares"]
[Date "2019.08.22"]
[Round "5.36"]
[White "Biedma Martin, Enrique"]
[Black "Portela Peleteiro, Alberto"]
[Result "0-1"]
[ECO "B07"]
[WhiteElo "2209"]
[BlackElo "2375"]
[Annotator "ChessBase"]
[PlyCount "108"]
[EventDate "2019.08.19"]
[EventType "team-tourn"]
[EventCountry "ESP"]
[SourceTitle "playchess.com"]
[Source "ChessBase"]
[SourceQuality "1"]
[TimeControl "5400+30"]

1. d4 d6 {[%emt 0:02:36]} 2. e4 {[%emt 0:00:00]} Nf6 {[%emt 0:00:10]} 3. Nc3 {[%emt 0:00:00]} Nbd7 {[%emt 0:00:02]} 4. g3 {[%emt 0:01:51]} e5 {[%emt 0:00:20]} 5. Nge2 {[%emt 0:00:35]} Be7 {[%emt 0:00:30]} 6. Bg2 {[%emt 0:00:06]} O-O {[%emt 0:01:45]} 7. O-O {[%emt 0:00:25]} Re8 {[%emt 0:02:52]} 8. Re1 {[%emt 0:08:55]} c6 {[%emt 0:00:39]} 9. a4 {[%emt 0:00:31]} b6 {[%emt 0:02:17]} 10. f3 {[%emt 0:06:38]} Qc7 {[%emt 0:05:15]} 11. Be3 {[%emt 0:01:50]} Bb7 {[%emt 0:00:29]} 12. Qd2 {[%emt 0:01:07]} a6 {[%emt 0:00:56]} 13. g4 {[%emt 0:06:41]} Nf8 {[%emt 0:19:32]} 14. Ng3 {[%emt 0:04:41]} Ne6 {[%emt 0:04:47]} 15. Nce2 {[%emt 0:01:53]} b5 {[%emt 0:00:27]} 16. c3 {[%emt 0:00:52]} g6 {[%emt 0:05:55]} 17. b3 {[%emt 0:08:45]} Bf8 {[%emt 0:02:26]} 18. a5 {[%emt 0:15:10]} Bg7 {[%emt 0:04:14]} 19. Red1 {[%emt 0:03:10]} Rad8 {[%emt 0:07:12]} 20. Qc2 {[%emt 0:06:55]} Nd7 {[%emt 0:02:28]} 21. f4 {[%emt 0:05:56]} exf4 {[%emt 0:01:18]} 22. Nxf4 {[%emt 0:00:03]} c5 {[%emt 0:01:38]} 23. Qd2 {[%emt 0:03:17]} Nxf4 {[%emt 0:10:17]} 24. Bxf4 {[%emt 0:00:06]} Nf6 {[%emt 0:00:01]} 25. Bg5 {[%emt 0:04:28]} Rd7 {[%emt 0:01:28]} 26. Qf4 {[%emt 0:02:15]} d5 {[%emt 0:01:16]} 27. e5 {[%emt 0:02:44]} Ne4 {[%emt 0:00:01]} 28. Nxe4 {[%emt 0:03:17]} dxe4 {[%emt 0:00:01]} 29. Bxe4 {[%emt 0:03:44]} h6 {[%emt 0:02:34]} 30. Bxh6 {[%emt 0:03:49]} Bxh6 {[%emt 0:00:13]} 31. Qxh6 {[%emt 0:00:01]} Bxe4 {[%emt 0:00:18]} 32. Re1 {[%emt 0:00:17]} Bb7 {[%emt 0:04:11]} 33. e6 {[%emt 0:02:02]} Rdd8 {[%emt 0:06:52]} 34. Re5 {[%emt 0:03:47]} Rxe6 {[%emt 0:08:27]} 35. Rxe6 {[%emt 0:00:14]} fxe6 {[%emt 0:00:03]} 36. Qxg6+ Qg7 {[%emt 0:00:37]} 37. Qxe6+ {[%emt 0:00:10]} Qf7 {[%emt 0:00:01]} 38. Qh6 {[%emt 0:01:35]} Rf8 {[%emt 0:02:36]} 39. Qg5+ {[%emt 0:00:02]} Kh7 {[%emt 0:00:06]} 40. Qh4+ {[%emt 0:00:17]} Kg7 {[%emt 0:00:09]} 41. Qg5+ {[%emt 0:00:04]} Qg6 {[%emt 0:00:22]} 42. Qxg6+ Kxg6 43. dxc5 {[%emt 0:00:25]} Kg5 {[%emt 0:00:37]} 44. Rf1 {[%emt 0:00:45]} Bf3 {[%emt 0:00:00]} 45. Re1 {[%emt 0:01:38]} Bxg4 {[%emt 0:01:43]} 46. Re7 {[%emt 0:00:59]} Bh3 {[%emt 0:00:32]} 47. Re5+ {[%emt 0:00:41]} Kg6 {[%emt 0:00:00]} 48. Re1 {[%emt 0:00:11]} Rf3 {[%emt 0:00:01]} 49. Rc1 {[%emt 0:00:24]} Kf6 {[%emt 0:00:18]} 50. b4 {[%emt 0:00:38]} Ke5 {[%emt 0:00:35]} 51. Rd1 {[%emt 0:00:16]} Rf6 {[%emt 0:00:57]} 52. c6 {[%emt 0:01:15]} Rxc6 {[%emt 0:00:39]} 53. Rd3 {[%emt 0:00:01]} Bf5 {[%emt 0:00:27]} 54. Rg3 {[%emt 0:00:11]} Rg6 {[%emt 0:01:30]} 0-1

[Event "ESP-chT 2nd Division 2019"]
[Site "Linares"]
[Date "2019.08.22"]
[Round "5.37"]
[White "Veiga, Jose Francisco R P N"]
[Black "Rodriguez Perez, Angel Mariano"]
[Result "1/2-1/2"]
[ECO "B26"]
[WhiteElo "2346"]
[BlackElo "2223"]
[Annotator "NA"]
[PlyCount "151"]
[EventDate "2019.08.19"]
[EventType "team-tourn"]
[EventCountry "ESP"]
[SourceTitle "playchess.com"]
[Source "ChessBase"]
[SourceQuality "1"]
[TimeControl "5400+30"]

1. g3 {[%emt 0:01:38]} c5 {[%emt 0:00:00]} 2. Bg2 {[%emt 0:00:27]} Nc6 {[%emt 0:00:00]} 3. e4 {[%emt 0:02:59]} g6 {[%emt 0:00:12]} 4. Nc3 {[%emt 0:00:19]} Bg7 {[%emt 0:00:10]} 5. d3 {[%emt 0:00:05]} d6 {[%emt 0:00:12]} 6. Be3 {[%emt 0:01:53]} Nf6 {[%emt 0:00:17]} 7. Qd2 {[%emt 0:00:21]} Ng4 {[%emt 0:02:19]} 8. Bf4 {[%emt 0:00:37]} e5 {[%emt 0:01:13]} 9. Bg5 {[%emt 0:01:26]} f6 {[%emt 0:00:07]} 10. Be3 {[%emt 0:00:03]} Nxe3 {[%emt 0:00:04]} 11. fxe3 {[%emt 0:00:06]} O-O {[%emt 0:00:24]} 12. Bh3 {[%emt 0:05:58]} Bxh3 {[%emt 0:01:55]} 13. Nxh3 {[%emt 0:00:11]} Qd7 {[%emt 0:00:08]} 14. Ng1 {[%emt 0:01:05]} Ne7 {[%emt 0:01:05]} 15. Nge2 {[%emt 0:08:09]} d5 {[%emt 0:02:58]} 16. Nxd5 {[%emt 0:00:17]} Nxd5 {[%emt 0:00:07]} 17. exd5 {[%emt 0:00:04]} Qxd5 {[%emt 0:00:05]} 18. e4 {[%emt 0:00:06]} Qd7 {[%emt 0:03:02]} 19. Nc3 {[%emt 0:01:42]} Qd4 {[%emt 0:01:25]} 20. O-O-O {[%emt 0:01:32]} f5 {[%emt 0:03:00]} 21. Rhe1 {[%emt 0:08:17]} f4 {[%emt 0:09:15]} 22. Rf1 {[%emt 0:08:01]} fxg3 {[%emt 0:02:44]} 23. hxg3 {[%emt 0:00:23]} Rxf1 {[%emt 0:00:18]} 24. Rxf1 {[%emt 0:00:03]} Rf8 {[%emt 0:00:09]} 25. Rxf8+ {[%emt 0:01:42]} Bxf8 {[%emt 0:00:06]} 26. Qe1 {[%emt 0:19:22]} c4 {[%emt 0:01:30]} 27. Qe2 {[%emt 0:07:14]} Qg1+ {[%emt 0:01:10]} 28. Qd1 {[%emt 0:00:21]} Qxg3 {[%emt 0:02:14]} 29. dxc4 {[%emt 0:00:07]} Qe3+ {[%emt 0:02:44]} 30. Kb1 {[%emt 0:00:06]} Qd4 {[%emt 0:01:05]} 31. Qf1 {[%emt 0:01:40]} Bc5 {[%emt 0:01:38]} 32. Nd1 {[%emt 0:03:23]} Qxe4 {[%emt 0:01:32]} 33. a3 {[%emt 0:01:25]} Bd4 {[%emt 0:03:35]} 34. Qh3 {[%emt 0:03:10]} Qf5 {[%emt 0:02:55]} 35. Qh4 {[%emt 0:00:21]} g5 {[%emt 0:01:14]} 36. Qh5 {[%emt 0:00:06]} Kg7 {[%emt 0:01:28]} 37. Ka2 {[%emt 0:00:54]} Qg6 {[%emt 0:01:51]} 38. Qg4 {[%emt 0:00:11]} h5 {[%emt 0:00:33]} 39. Qd7+ {[%emt 0:04:01]} Qf7 {[%emt 0:00:14]} 40. Qc8 {[%emt 0:01:36]} b5 {[%emt 0:02:49]} 41. b3 {[%emt 0:00:48]} bxc4 {[%emt 0:00:35]} 42. bxc4 {[%emt 0:00:02]} g4 {[%emt 0:04:03]} 43. c3 {[%emt 0:01:39]} Bb6 {[%emt 0:00:13]} 44. Kb3 {[%emt 0:00:19]} g3 {[%emt 0:00:45]} 45. Qh3 {[%emt 0:01:09]} Qg6 {[%emt 0:00:33]} 46. Qd7+ {[%emt 0:00:34]} Qf7 {[%emt 0:02:24]} 47. Qh3 {[%emt 0:00:24]} Bf2 {[%emt 0:00:34]} 48. Ne3 {[%emt 0:00:20]} Kg6 {[%emt 0:09:55]} 49. Nd5 {[%emt 0:00:57]} e4 {[%emt 0:01:17]} 50. Qh4 {[%emt 0:00:46]} Qf3 {[%emt 0:02:54]} 51. Ne7+ {[%emt 0:06:39]} Kf7 {[%emt 0:00:26]} 52. Nc6 {[%emt 0:00:02]} Qd1+ {[%emt 0:05:10]} 53. Kb2 {[%emt 0:00:45]} Kg6 {[%emt 0:04:29]} 54. Qxe4+ {[%emt 0:00:42]} Kg5 {[%emt 0:00:47]} 55. Ne5 {[%emt 0:00:51]} Qd2+ {[%emt 0:01:39]} 56. Kb3 {[%emt 0:00:17]} Qd1+ {[%emt 0:01:04]} 57. Kb2 {[%emt 0:00:06]} Qd2+ {[%emt 0:01:18]} 58. Kb3 {[%emt 0:00:10]} Qd1+ {[%emt 0:00:23]} 59. Kb4 {[%emt 0:00:05]} Qd6+ {[%emt 0:00:19]} 60. Ka4 {[%emt 0:00:06]} Qd1+ {[%emt 0:01:18]} 61. Kb5 {[%emt 0:01:14]} Qb3+ {[%emt 0:00:49]} 62. Kc6 {[%emt 0:00:14]} Qa4+ {[%emt 0:00:49]} 63. Kd5 {[%emt 0:01:11]} Qa5+ {[%emt 0:00:43]} 64. Ke6 {[%emt 0:00:15]} Qb6+ {[%emt 0:00:51]} 65. Kd7 {[%emt 0:00:47]} Qf6 {[%emt 0:01:44]} 66. Ke8 {[%emt 0:01:53]} Qe6+ {[%emt 0:00:32]} 67. Kf8 {[%emt 0:00:09]} Qf5+ {[%emt 0:00:26]} 68. Nf7+ {[%emt 0:00:06]} Kg6 {[%emt 0:00:39]} 69. Qc6+ {[%emt 0:00:51]} Qf6 {[%emt 0:00:42]} 70. Qe4+ {[%emt 0:01:08]} Qf5 {[%emt 0:00:15]} 71. Qc6+ {[%emt 0:07:19]} Qf6 {[%emt 0:00:32]} 72. Qe4+ {[%emt 0:00:09]} Qf5 {[%emt 0:00:36]} 73. Qc6+ {[%emt 0:00:11]} Qf6 {[%emt 0:00:05]} 74. Qe4+ {[%emt 0:00:21]} Qf5 {[%emt 0:00:08]} 75. Qc6+ {[%emt 0:00:05]} Qf6 {[%emt 0:00:05]} 76. Qe4+ {[%emt 0:00:09]} 1/2-1/2

[Event "ESP-chT 2nd Division 2019"]
[Site "Linares"]
[Date "2019.08.22"]
[Round "5.38"]
[White "Espejo Montagut, Jonathan"]
[Black "Fernandez Lopez, Ruben"]
[Result "0-1"]
[ECO "B94"]
[WhiteElo "2096"]
[BlackElo "2242"]
[Annotator "NA"]
[PlyCount "60"]
[EventDate "2019.08.19"]
[EventType "team-tourn"]
[EventCountry "ESP"]
[SourceTitle "playchess.com"]
[Source "ChessBase"]
[SourceQuality "1"]
[TimeControl "5400+30"]

1. e4 {[%emt 0:00:22]} c5 {[%emt 0:00:00]} 2. Nf3 {[%emt 0:01:05]} d6 {[%emt 0:00:00]} 3. d4 {[%emt 0:00:31]} cxd4 {[%emt 0:00:12]} 4. Nxd4 {[%emt 0:00:05]} Nf6 {[%emt 0:00:29]} 5. Nc3 {[%emt 0:00:09]} a6 {[%emt 0:00:09]} 6. Bg5 {[%emt 0:01:24]} Nbd7 {[%emt 0:01:01]} 7. Qe2 {[%emt 0:03:24]} e6 {[%emt 0:07:05]} 8. f4 {[%emt 0:04:18]} Qc7 {[%emt 0:00:43]} 9. g4 {[%emt 0:07:21]} b5 {[%emt 0:00:56]} 10. Bg2 {[%emt 0:05:24]} Bb7 {[%emt 0:03:23]} 11. a3 {[%emt 0:08:40]} Be7 {[%emt 0:03:33]} 12. f5 {[%emt 0:00:58]} e5 {[%emt 0:13:30]} 13. Nb3 {[%emt 0:00:08]} Rc8 {[%emt 0:11:24]} 14. Bf3 {[%emt 0:06:42]} Nb6 {[%emt 0:01:54]} 15. Nd2 {[%emt 0:07:21]} h5 {[%emt 0:10:28]} 16. gxh5 {[%emt 0:06:39]} Nxh5 {[%emt 0:00:14]} 17. Bxe7 {[%emt 0:00:06]} Nf4 {[%emt 0:00:04]} 18. Qe3 {[%emt 0:00:04]} Kxe7 {[%emt 0:00:04]} 19. O-O {[%emt 0:02:26]} Rh6 {[%emt 0:00:53]} 20. Bg4 {[%emt 0:03:12]} Rch8 {[%emt 0:01:28]} 21. Rf2 {[%emt 0:00:07]} Rh4 {[%emt 0:00:29]} 22. Qg3 {[%emt 0:10:23]} Rxg4 {[%emt 0:01:35]} 23. Qxg4 {[%emt 0:00:06]} Nh3+ {[%emt 0:00:01]} 24. Kg2 {[%emt 0:00:09]} Nxf2 {[%emt 0:00:16]} 25. Qg5+ {[%emt 0:00:05]} Kd7 {[%emt 0:06:27]} 26. Qxg7 {[%emt 0:01:19]} Qd8 {[%emt 0:00:13]} 27. Kxf2 {[%emt 0:02:03]} Rxh2+ {[%emt 0:00:08]} 28. Ke3 {[%emt 0:00:10]} Nd5+ {[%emt 0:03:49]} 29. Nxd5 {[%emt 0:03:32]} Bxd5 {[%emt 0:00:04]} 30. c3 {[%emt 0:01:27]} Qb6+ {[%emt 0:00:44] Kd4} 0-1

[Event "ESP-chT 2nd Division 2019"]
[Site "Linares"]
[Date "2019.08.22"]
[Round "5.39"]
[White "Garcia Sobrino, David"]
[Black "Serrano Garcia, Luis"]
[Result "1-0"]
[ECO "C47"]
[WhiteElo "2195"]
[BlackElo "1908"]
[Annotator "NA"]
[PlyCount "81"]
[EventDate "2019.08.19"]
[EventType "team-tourn"]
[EventCountry "ESP"]
[SourceTitle "playchess.com"]
[Source "ChessBase"]
[SourceQuality "1"]
[TimeControl "5400+30"]

1. e4 {[%emt 0:00:23]} e5 {[%emt 0:00:07]} 2. Nf3 {[%emt 0:00:05]} Nc6 {[%emt 0:00:05]} 3. Nc3 {[%emt 0:00:57]} Nf6 {[%emt 0:00:11]} 4. d4 {[%emt 0:00:05]} exd4 {[%emt 0:04:08]} 5. Nxd4 {[%emt 0:00:04]} Bc5 {[%emt 0:00:57]} 6. Be3 {[%emt 0:03:57]} Bb6 {[%emt 0:12:24]} 7. Qd2 {[%emt 0:02:14]} Ng4 {[%emt 0:06:56]} 8. Bg5 {[%emt 0:01:44]} f6 {[%emt 0:02:02]} 9. Nxc6 {[%emt 0:03:32]} dxc6 {[%emt 0:02:07]} 10. Qxd8+ {[%emt 0:01:07]} Kxd8 {[%emt 0:00:19]} 11. Bh4 {[%emt 0:00:21]} Be6 {[%emt 0:01:08]} 12. h3 {[%emt 0:11:48]} Ne5 {[%emt 0:00:28]} 13. O-O-O+ {[%emt 0:02:58]} Ke7 {[%emt 0:00:45]} 14. Na4 {[%emt 0:04:29]} Rhd8 {[%emt 0:02:55]} 15. Be2 {[%emt 0:02:07]} g5 {[%emt 0:08:21]} 16. Bg3 {[%emt 0:01:03]} Rd6 {[%emt 0:01:21]} 17. b3 {[%emt 0:05:23]} Rad8 {[%emt 0:02:41]} 18. Nxb6 {[%emt 0:04:44]} cxb6 {[%emt 0:00:15]} 19. h4 {[%emt 0:03:16]} Rxd1+ {[%emt 0:06:05]} 20. Bxd1 {[%emt 0:02:27]} h6 {[%emt 0:00:42]} 21. hxg5 {[%emt 0:12:37]} hxg5 {[%emt 0:00:09]} 22. Bxe5 {[%emt 0:04:27]} fxe5 {[%emt 0:00:09]} 23. Rh7+ {[%emt 0:00:06]} Bf7 {[%emt 0:03:37]} 24. Bh5 {[%emt 0:04:22]} Rf8 {[%emt 0:00:21]} 25. Kd2 {[%emt 0:02:33]} Kf6 {[%emt 0:00:16]} 26. Rxf7+ {[%emt 0:01:19]} Rxf7 {[%emt 0:00:07]} 27. Bxf7 {[%emt 0:00:02]} Kxf7 {[%emt 0:00:07]} 28. Ke3 {[%emt 0:01:18]} Kg6 {[%emt 0:03:33]} 29. Kf3 {[%emt 0:06:58]} Kh5 {[%emt 0:00:23]} 30. Kg3 {[%emt 0:01:24]} b5 {[%emt 0:01:40]} 31. b4 {[%emt 0:10:15]} b6 {[%emt 0:02:05]} 32. f3 {[%emt 0:01:43]} c5 {[%emt 0:00:58]} 33. c3 {[%emt 0:00:10]} a5 {[%emt 0:00:19]} 34. a3 {[%emt 0:00:16]} Kh6 {[%emt 0:05:50]} 35. Kg4 {[%emt 0:02:04]} Kg6 {[%emt 0:00:06]} 36. g3 {[%emt 0:01:37]} a4 {[%emt 0:01:02]} 37. f4 {[%emt 0:00:26]} gxf4 {[%emt 0:00:08]} 38. gxf4 {[%emt 0:00:03]} exf4 {[%emt 0:00:16]} 39. Kxf4 {[%emt 0:00:07]} Kf6 {[%emt 0:00:06]} 40. e5+ {[%emt 0:00:27]} Ke6 41. Ke4 {Kd5+} 1-0